[Event "Early Titled Tuesday Blitz | February 8 2022"]
[White "Mohammed, Dilshad"]
[Black "Cramling Bellon, Anna"]
[WhiteFideId "5050421"]
[BlackFideId "32009232"]
[WhiteElo "2153"]
[BlackElo "1905"]
[Result "0-1"]
[Round "10"]
[TimeControl "180+1"]
[Date "2022.02.08"]
[WhiteClock "0:00:11"]
[BlackClock "0:00:04"]

1. Nf3 {[%clk 0:02:59]}  c5 {[%clk 0:02:57]} 2. c4 {[%clk 0:02:59]}  Nc6 {[%clk 0:02:54]} 3. Nc3 {[%clk 0:02:56]}  e6 {[%clk 0:02:51]} 4. g3 {[%clk 0:02:52]}  g6 {[%clk 0:02:51]} 5. Bg2 {[%clk 0:02:52]}  Bg7 {[%clk 0:02:51]} 6. O-O {[%clk 0:02:52]}  d5 {[%clk 0:02:51]} 7. cxd5 {[%clk 0:02:52]}  exd5 {[%clk 0:02:50]} 8. e3 {[%clk 0:02:51]}  Nge7 {[%clk 0:02:50]} 9. d4 {[%clk 0:02:50]}  cxd4 {[%clk 0:02:46]} 10. Nxd4 {[%clk 0:02:50]}  O-O {[%clk 0:02:45]} 11. Nb3 {[%clk 0:02:44]}  Be6 {[%clk 0:02:43]} 12. Nc5 {[%clk 0:02:44]}  Qb6 {[%clk 0:02:33]} 13. Nxe6 {[%clk 0:02:40]}  fxe6 {[%clk 0:02:34]} 14. Bh3 {[%clk 0:02:39]}  Ne5 {[%clk 0:02:30]} 15. Qb3 {[%clk 0:02:20]}  Nf3+ {[%clk 0:02:25]} 16. Kg2 {[%clk 0:02:18]}  Qc6 {[%clk 0:02:02]} 17. Qb5 {[%clk 0:01:59]}  Qd6 {[%clk 0:02:01]} 18. Bg4 {[%clk 0:01:57]}  Ne5 {[%clk 0:01:49]} 19. Be2 {[%clk 0:01:56]}  Nf5 {[%clk 0:01:46]} 20. f4 {[%clk 0:01:51]}  Nc4 {[%clk 0:01:26]} 21. Bxc4 {[%clk 0:01:49]}  dxc4 {[%clk 0:01:27]} 22. Qxc4 {[%clk 0:01:48]}  Rac8 {[%clk 0:01:27]} 23. Qb3 {[%clk 0:01:36]}  Qd3 {[%clk 0:00:50]} 24. Qxe6+ {[%clk 0:01:24]}  Kh8 {[%clk 0:00:50]} 25. Qe4 {[%clk 0:01:14]}  Rxc3 {[%clk 0:00:43]} 26. Qxd3 {[%clk 0:01:12]}  Rxd3 {[%clk 0:00:44]} 27. Re1 {[%clk 0:01:08]}  Re8 {[%clk 0:00:41]} 28. e4 {[%clk 0:01:05]}  Nd4 {[%clk 0:00:40]} 29. e5 {[%clk 0:01:05]}  Nc2 {[%clk 0:00:40]} 30. Be3 {[%clk 0:00:41]}  Nxa1 {[%clk 0:00:39]} 31. Bxa7 {[%clk 0:00:40]}  Nc2 {[%clk 0:00:36]} 32. Rc1 {[%clk 0:00:40]}  Rd2+ {[%clk 0:00:31]} 33. Kh3 {[%clk 0:00:37]}  Nd4 {[%clk 0:00:22]} 34. Kg4 {[%clk 0:00:31]}  Ne6 {[%clk 0:00:18]} 35. h4 {[%clk 0:00:26]}  h5+ {[%clk 0:00:16]} 36. Kh3 {[%clk 0:00:26]}  Rxb2 {[%clk 0:00:16]} 37. a4 {[%clk 0:00:25]}  Rb3 {[%clk 0:00:16]} 38. Rc4 {[%clk 0:00:23]}  Rf8 {[%clk 0:00:14]} 39. Kh2 {[%clk 0:00:21]}  Rb2+ {[%clk 0:00:13]} 40. Kh3 {[%clk 0:00:20]}  Rb1 {[%clk 0:00:11]} 41. a5 {[%clk 0:00:19]}  Ra1 {[%clk 0:00:11]} 42. Bb6 {[%clk 0:00:19]}  Rd8 {[%clk 0:00:07]} 43. Bxd8 {[%clk 0:00:18]}  Nxd8 {[%clk 0:00:07]} 44. Rc8 {[%clk 0:00:18]}  Rd1 {[%clk 0:00:07]} 45. e6 {[%clk 0:00:18]}  Bf6 {[%clk 0:00:07]} 46. Rc7 {[%clk 0:00:17]}  Re1 {[%clk 0:00:03]} 47. e7 {[%clk 0:00:10]}  Rxe7 {[%clk 0:00:02]} 48. Rc8 {[%clk 0:00:10]}  Re8 {[%clk 0:00:02]} 49. Rc7 {[%clk 0:00:10]}  Kg8 {[%clk 0:00:02]} 50. Rd7 {[%clk 0:00:10]}  Kf8 {[%clk 0:00:03]} 51. f5 {[%clk 0:00:10]}  Nf7 {[%clk 0:00:03]} 52. fxg6 {[%clk 0:00:10]}  Ne5 {[%clk 0:00:04]} 53. Rh7 {[%clk 0:00:11]}  Kg8 {[%clk 0:00:04]} 54. Rxh5 {[%clk 0:00:11]}  Nxg6 {[%clk 0:00:05]} 55. Rf5 {[%clk 0:00:11]}  Kg7 {[%clk 0:00:05]} 56. h5 {[%clk 0:00:11]}  Ne7 {[%clk 0:00:05]} 57. Rb5 {[%clk 0:00:12]}  Rb8 {[%clk 0:00:02]} 58. a6 {[%clk 0:00:11]}  b6 {[%clk 0:00:03]} 59. g4 {[%clk 0:00:10]}  Nc6 {[%clk 0:00:02]} 60. g5 {[%clk 0:00:11]}  Be7 {[%clk 0:00:02]} 61. Rd5 {[%clk 0:00:10]}  Kf7 {[%clk 0:00:02]} 62. Rf5+ {[%clk 0:00:09]}  Ke6 {[%clk 0:00:02]} 63. Rf3 {[%clk 0:00:09]}  Ne5 {[%clk 0:00:02]} 64. Re3 {[%clk 0:00:09]}  Kf5 {[%clk 0:00:02]} 65. g6 {[%clk 0:00:08]}  Bf6 {[%clk 0:00:02]} 66. Re1 {[%clk 0:00:07]}  Rh8 {[%clk 0:00:02]} 67. Rf1+ {[%clk 0:00:07]}  Ke6 {[%clk 0:00:02]} 68. a7 {[%clk 0:00:04]}  Rxh5+ {[%clk 0:00:02]} 69. Kg3 {[%clk 0:00:05]}  Rh8 {[%clk 0:00:02]} 70. g7 {[%clk 0:00:05]}  Bxg7 {[%clk 0:00:02]} 71. Re1 {[%clk 0:00:05]}  Ra8 {[%clk 0:00:02]} 72. Ra1 {[%clk 0:00:05]}  Kd6 {[%clk 0:00:03]} 73. Ra6 {[%clk 0:00:06]}  Nc6 {[%clk 0:00:03]} 74. Kg4 {[%clk 0:00:06]}  Kc7 {[%clk 0:00:03]} 75. Ra4 {[%clk 0:00:06]}  Rxa7 {[%clk 0:00:04]} 76. Re4 {[%clk 0:00:06]}  Bf6 {[%clk 0:00:04]} 77. Kf5 {[%clk 0:00:06]}  Be7 {[%clk 0:00:05]} 78. Re6 {[%clk 0:00:06]}  Bd6 {[%clk 0:00:06]} 79. Rh6 {[%clk 0:00:06]}  Nd4+ {[%clk 0:00:06]} 80. Ke4 {[%clk 0:00:07]}  Nc6 {[%clk 0:00:06]} 81. Kd5 {[%clk 0:00:07]}  Ne7+ {[%clk 0:00:06]} 82. Ke6 {[%clk 0:00:07]}  Ra5 {[%clk 0:00:03]} 83. Rh1 {[%clk 0:00:07]}  Re5+ {[%clk 0:00:04]} 84. Kf6 {[%clk 0:00:07]}  Re3 {[%clk 0:00:04]} 85. Rc1+ {[%clk 0:00:07]}  Nc6 {[%clk 0:00:04]} 86. Kf5 {[%clk 0:00:07]}  Bc5 {[%clk 0:00:04]} 87. Kf4 {[%clk 0:00:07]}  Re7 {[%clk 0:00:05]} 88. Kf5 {[%clk 0:00:07]}  Kd6 {[%clk 0:00:05]} 89. Rd1+ {[%clk 0:00:07]}  Nd4+ {[%clk 0:00:06]} 90. Kf4 {[%clk 0:00:07]}  Kd5 {[%clk 0:00:06]} 91. Kg3 {[%clk 0:00:07]}  b5 {[%clk 0:00:07]} 92. Rh1 {[%clk 0:00:06]}  b4 {[%clk 0:00:06]} 93. Rh5+ {[%clk 0:00:06]}  Re5 {[%clk 0:00:07]} 94. Rh8 {[%clk 0:00:06]}  b3 {[%clk 0:00:07]} 95. Rb8 {[%clk 0:00:07]}  Kc4 {[%clk 0:00:06]} 96. Kf4 {[%clk 0:00:05]}  Re7 {[%clk 0:00:04]} 97. Kg5 {[%clk 0:00:04]}  Nb5 {[%clk 0:00:04]} 98. Kf6 {[%clk 0:00:04]}  Re2 {[%clk 0:00:03]} 99. Rh8 {[%clk 0:00:03]}  Re1 {[%clk 0:00:03]} 100. Rh4+ {[%clk 0:00:03]}  Kc3 {[%clk 0:00:03]} 101. Rh3+ {[%clk 0:00:04]}  Be3 {[%clk 0:00:04]} 102. Rh2 {[%clk 0:00:04]}  b2 {[%clk 0:00:04]} 103. Rh5 {[%clk 0:00:04]}  Nd4 {[%clk 0:00:03]} 104. Rc5+ {[%clk 0:00:04]}  Kd3 {[%clk 0:00:02]} 105. Rb5 {[%clk 0:00:05]}  b1=Q {[%clk 0:00:03]} 106. Rxb1 {[%clk 0:00:05]}  Rxb1 {[%clk 0:00:03]} 107. Ke5 {[%clk 0:00:05]}  Rb5+ {[%clk 0:00:03]} 108. Kd6 {[%clk 0:00:06]}  Ke4 {[%clk 0:00:04]} 109. Ke7 {[%clk 0:00:06]}  Rh5 {[%clk 0:00:05]} 110. Kf7 {[%clk 0:00:07]}  Ke5 {[%clk 0:00:05]} 111. Kg7 {[%clk 0:00:07]}  Ne6+ {[%clk 0:00:04]} 112. Kf7 {[%clk 0:00:07]}  Kf5 {[%clk 0:00:05]} 113. Ke7 {[%clk 0:00:07]}  Rh7+ {[%clk 0:00:04]} 114. Kd6 {[%clk 0:00:08]}  Bf4+ {[%clk 0:00:05]} 115. Kd5 {[%clk 0:00:08]}  Rd7+ {[%clk 0:00:05]} 116. Kc4 {[%clk 0:00:09]}  Ke4 {[%clk 0:00:05]} 117. Kb5 {[%clk 0:00:09]}  Rc7 {[%clk 0:00:06]} 118. Kb6 {[%clk 0:00:10]}  Rc1 {[%clk 0:00:07]} 119. Kb5 {[%clk 0:00:10]}  Kd3 {[%clk 0:00:07]} 120. Kb4 {[%clk 0:00:10]}  Kd2 {[%clk 0:00:07]} 121. Kb5 {[%clk 0:00:11]}  Kd3 {[%clk 0:00:08]} 122. Kb6 {[%clk 0:00:11]}  Kd4 {[%clk 0:00:08]} 123. Kb5 {[%clk 0:00:11]}  Bd6 {[%clk 0:00:05]} 124. Kb6 {[%clk 0:00:12]}  Be5 {[%clk 0:00:04]} 125. Kb5 {[%clk 0:00:12]}  Kd5 {[%clk 0:00:03]} 126. Kb6 {[%clk 0:00:12]}  Rb1+ {[%clk 0:00:01]} 127. Ka5 {[%clk 0:00:12]}  Kc4 {[%clk 0:00:01]} 128. Ka6 {[%clk 0:00:12]}  Kc5 {[%clk 0:00:02]} 129. Ka7 {[%clk 0:00:11]}  Kc6 {[%clk 0:00:03]} 130. Ka8 {[%clk 0:00:11]}  Kc7 {[%clk 0:00:03]} 131. Ka7 {[%clk 0:00:11]}  Ra1# {[%clk 0:00:04]} 0-1


[Site "https://www.chess.com"]

[Event "Early Titled Tuesday Blitz | February 8 2022"]
[White "Molina, Roberto Junio Brito"]
[Black "Lodici, Lorenzo"]
[WhiteFideId "2109450"]
[BlackFideId "884189"]
[WhiteElo "2402"]
[BlackElo "2265"]
[Result "0-1"]
[Round "10"]
[TimeControl "180+1"]
[Date "2022.02.08"]
[WhiteClock "0:00:07"]
[BlackClock "0:00:46"]

1. d4 {[%clk 0:03:00]}  Nf6 {[%clk 0:02:57]} 2. Nf3 {[%clk 0:03:00]}  b6 {[%clk 0:02:57]} 3. e3 {[%clk 0:03:01]}  Bb7 {[%clk 0:02:57]} 4. Bd3 {[%clk 0:03:00]}  g6 {[%clk 0:02:57]} 5. Qe2 {[%clk 0:02:58]}  d5 {[%clk 0:02:54]} 6. Nbd2 {[%clk 0:02:58]}  Bg7 {[%clk 0:02:54]} 7. c3 {[%clk 0:02:56]}  O-O {[%clk 0:02:54]} 8. O-O {[%clk 0:02:55]}  c5 {[%clk 0:02:54]} 9. dxc5 {[%clk 0:02:54]}  bxc5 {[%clk 0:02:54]} 10. e4 {[%clk 0:02:54]}  e6 {[%clk 0:02:48]} 11. Re1 {[%clk 0:02:52]}  Nc6 {[%clk 0:02:44]} 12. Rb1 {[%clk 0:02:21]}  Qb6 {[%clk 0:02:34]} 13. b3 {[%clk 0:02:18]}  dxe4 {[%clk 0:02:01]} 14. Bxe4 {[%clk 0:02:11]}  Nd5 {[%clk 0:01:49]} 15. Bxd5 {[%clk 0:02:03]}  exd5 {[%clk 0:01:42]} 16. Bb2 {[%clk 0:02:03]}  h6 {[%clk 0:01:35]} 17. c4 {[%clk 0:01:57]}  d4 {[%clk 0:01:34]} 18. Ne4 {[%clk 0:01:55]}  Rfe8 {[%clk 0:01:32]} 19. Qd2 {[%clk 0:01:54]}  Nb4 {[%clk 0:01:30]} 20. Ng3 {[%clk 0:01:51]}  Nxa2 {[%clk 0:01:23]} 21. Bxd4 {[%clk 0:01:48]}  cxd4 {[%clk 0:01:18]} 22. Qxa2 {[%clk 0:01:47]}  d3 {[%clk 0:01:16]} 23. Rxe8+ {[%clk 0:01:33]}  Rxe8 {[%clk 0:01:16]} 24. b4 {[%clk 0:01:33]}  Bxf3 {[%clk 0:01:12]} 25. gxf3 {[%clk 0:01:32]}  Qd4 {[%clk 0:01:12]} 26. c5 {[%clk 0:01:27]}  d2 {[%clk 0:01:11]} 27. Ne4 {[%clk 0:01:04]}  d1=Q+ {[%clk 0:01:10]} 28. Rxd1 {[%clk 0:01:04]}  Qxd1+ {[%clk 0:01:10]} 29. Kg2 {[%clk 0:01:05]}  Qd4 {[%clk 0:01:05]} 30. b5 {[%clk 0:00:53]}  Qb4 {[%clk 0:00:53]} 31. Qa6 {[%clk 0:00:32]}  Rxe4 {[%clk 0:00:47]} 32. fxe4 {[%clk 0:00:32]}  Qxe4+ {[%clk 0:00:48]} 33. Kg1 {[%clk 0:00:29]}  Bd4 {[%clk 0:00:46]} 34. c6 {[%clk 0:00:08]}  Qe1+ {[%clk 0:00:45]} 35. Kg2 {[%clk 0:00:07]}  Qxf2+ {[%clk 0:00:45]} 36. Kh3 {[%clk 0:00:07]}  Qf3+ {[%clk 0:00:46]} 0-1


[Site "https://www.chess.com"]

[Event "Early Titled Tuesday Blitz | February 8 2022"]
[White "Moskvin, Anatoly"]
[Black "Gabdrakhmanov, Azat"]
[WhiteFideId "24199990"]
[BlackFideId "34189197"]
[WhiteElo "2079"]
[BlackElo "2279"]
[Result "0-1"]
[Round "10"]
[TimeControl "180+1"]
[Date "2022.02.08"]
[WhiteClock "0:00:07"]
[BlackClock "0:01:36"]

1. e4 {[%clk 0:03:00]}  c5 {[%clk 0:03:00]} 2. Nf3 {[%clk 0:03:01]}  e6 {[%clk 0:03:00]} 3. b4 {[%clk 0:03:00]}  d6 {[%clk 0:02:56]} 4. bxc5 {[%clk 0:02:58]}  dxc5 {[%clk 0:02:56]} 5. Nc3 {[%clk 0:02:57]}  Nf6 {[%clk 0:02:55]} 6. Bb5+ {[%clk 0:02:53]}  Bd7 {[%clk 0:02:53]} 7. a4 {[%clk 0:02:54]}  a6 {[%clk 0:02:52]} 8. Bxd7+ {[%clk 0:02:53]}  Qxd7 {[%clk 0:02:50]} 9. O-O {[%clk 0:02:53]}  Nc6 {[%clk 0:02:51]} 10. d3 {[%clk 0:02:14]}  Be7 {[%clk 0:02:50]} 11. Bf4 {[%clk 0:02:11]}  O-O {[%clk 0:02:46]} 12. Ne5 {[%clk 0:02:08]}  Nxe5 {[%clk 0:02:46]} 13. Bxe5 {[%clk 0:02:09]}  Qc6 {[%clk 0:02:46]} 14. a5 {[%clk 0:02:03]}  Nd7 {[%clk 0:02:46]} 15. Bg3 {[%clk 0:02:04]}  b5 {[%clk 0:02:40]} 16. axb6 {[%clk 0:02:03]}  Nxb6 {[%clk 0:02:40]} 17. Ra2 {[%clk 0:01:48]}  Bf6 {[%clk 0:02:32]} 18. e5 {[%clk 0:01:44]}  Be7 {[%clk 0:02:30]} 19. Qa1 {[%clk 0:01:45]}  Nd5 {[%clk 0:02:28]} 20. Nxd5 {[%clk 0:01:36]}  exd5 {[%clk 0:02:29]} 21. c4 {[%clk 0:01:36]}  dxc4 {[%clk 0:02:26]} 22. dxc4 {[%clk 0:01:37]}  Rfd8 {[%clk 0:02:26]} 23. h3 {[%clk 0:01:24]}  h5 {[%clk 0:02:25]} 24. Qc3 {[%clk 0:01:02]}  Qe4 {[%clk 0:02:22]} 25. Re1 {[%clk 0:00:56]}  Qd4 {[%clk 0:02:16]} 26. Qxd4 {[%clk 0:00:13]}  Rxd4 {[%clk 0:02:16]} 27. Ra4 {[%clk 0:00:13]}  h4 {[%clk 0:02:16]} 28. Bh2 {[%clk 0:00:14]}  Bg5 {[%clk 0:02:03]} 29. Kf1 {[%clk 0:00:14]}  a5 {[%clk 0:02:00]} 30. Rea1 {[%clk 0:00:08]}  Bd2 {[%clk 0:01:59]} 31. Ke2 {[%clk 0:00:08]}  Bb4 {[%clk 0:01:53]} 32. Rc1 {[%clk 0:00:08]}  Rd2+ {[%clk 0:01:51]} 33. Kf1 {[%clk 0:00:05]}  Rad8 {[%clk 0:01:52]} 34. Bf4 {[%clk 0:00:05]}  Rd1+ {[%clk 0:01:45]} 35. Ke2 {[%clk 0:00:04]}  Rxc1 {[%clk 0:01:42]} 36. Bxc1 {[%clk 0:00:05]}  Rd4 {[%clk 0:01:42]} 37. Bg5 {[%clk 0:00:05]}  Rxc4 {[%clk 0:01:39]} 38. Be3 {[%clk 0:00:02]}  Re4 {[%clk 0:01:38]} 39. Kd3 {[%clk 0:00:03]}  Rxe5 {[%clk 0:01:38]} 40. Kc4 {[%clk 0:00:03]}  Re4+ {[%clk 0:01:38]} 41. Kb5 {[%clk 0:00:04]}  c4 {[%clk 0:01:35]} 42. Ra1 {[%clk 0:00:03]}  c3 {[%clk 0:01:36]} 43. Rc1 {[%clk 0:00:04]}  Re8 {[%clk 0:01:36]} 44. Bd4 {[%clk 0:00:04]}  Rc8 {[%clk 0:01:36]} 45. Ka4 {[%clk 0:00:04]}  f6 {[%clk 0:01:36]} 46. Kb3 {[%clk 0:00:04]}  Kf7 {[%clk 0:01:36]} 47. Bxc3 {[%clk 0:00:05]}  Bxc3 {[%clk 0:01:34]} 48. Rxc3 {[%clk 0:00:05]}  Rxc3+ {[%clk 0:01:35]} 49. Kxc3 {[%clk 0:00:06]}  Ke6 {[%clk 0:01:35]} 50. Kb3 {[%clk 0:00:07]}  Ke5 {[%clk 0:01:36]} 51. Ka4 {[%clk 0:00:08]}  Ke4 {[%clk 0:01:36]} 52. Kxa5 {[%clk 0:00:09]}  Kd3 {[%clk 0:01:37]} 53. g3 {[%clk 0:00:06]}  Ke2 {[%clk 0:01:37]} 54. gxh4 {[%clk 0:00:05]}  Kxf2 {[%clk 0:01:37]} 55. Kb4 {[%clk 0:00:05]}  Kg3 {[%clk 0:01:38]} 56. Kc4 {[%clk 0:00:06]}  f5 {[%clk 0:01:38]} 57. h5 {[%clk 0:00:04]}  f4 {[%clk 0:01:39]} 58. Kd5 {[%clk 0:00:05]}  f3 {[%clk 0:01:39]} 59. Ke6 {[%clk 0:00:06]}  f2 {[%clk 0:01:39]} 60. Kf7 {[%clk 0:00:07]}  f1=Q+ {[%clk 0:01:39]} 61. Kxg7 {[%clk 0:00:08]}  Qa1+ {[%clk 0:01:39]} 62. Kg6 {[%clk 0:00:07]}  Qh8 {[%clk 0:01:36]} 0-1


[Site "https://www.chess.com"]

[Event "Early Titled Tuesday Blitz | February 8 2022"]
[White "Nesterov, Arseniy"]
[Black "Alekseev, Evgeny"]
[WhiteFideId "24198455"]
[BlackFideId "4138147"]
[WhiteElo "2489"]
[BlackElo "2589"]
[Result "0-1"]
[Round "10"]
[TimeControl "180+1"]
[Date "2022.02.08"]
[WhiteClock "0:00:03"]
[BlackClock "0:00:18"]

1. d4 {[%clk 0:03:00]}  Nf6 {[%clk 0:02:58]} 2. c4 {[%clk 0:03:01]}  e6 {[%clk 0:02:58]} 3. Nf3 {[%clk 0:03:00]}  d5 {[%clk 0:02:58]} 4. Nc3 {[%clk 0:02:59]}  Nbd7 {[%clk 0:02:59]} 5. Bg5 {[%clk 0:02:58]}  Bb4 {[%clk 0:02:50]} 6. e3 {[%clk 0:02:55]}  c5 {[%clk 0:02:50]} 7. cxd5 {[%clk 0:02:49]}  exd5 {[%clk 0:02:50]} 8. Be2 {[%clk 0:02:44]}  c4 {[%clk 0:02:42]} 9. O-O {[%clk 0:02:40]}  Qa5 {[%clk 0:02:41]} 10. Nd2 {[%clk 0:02:17]}  Bxc3 {[%clk 0:02:37]} 11. bxc3 {[%clk 0:02:17]}  Qxc3 {[%clk 0:02:34]} 12. e4 {[%clk 0:02:02]}  Nxe4 {[%clk 0:02:32]} 13. Nxe4 {[%clk 0:02:01]}  dxe4 {[%clk 0:02:32]} 14. Rc1 {[%clk 0:01:59]}  Qa5 {[%clk 0:02:32]} 15. Bd2 {[%clk 0:01:55]}  Qb6 {[%clk 0:02:26]} 16. Bxc4 {[%clk 0:01:23]}  O-O {[%clk 0:02:25]} 17. Bc3 {[%clk 0:01:19]}  Qg6 {[%clk 0:02:21]} 18. d5 {[%clk 0:01:14]}  Nb6 {[%clk 0:02:18]} 19. Be5 {[%clk 0:01:03]}  Rd8 {[%clk 0:01:52]} 20. Kh1 {[%clk 0:00:24]}  Be6 {[%clk 0:01:30]} 21. Bc7 {[%clk 0:00:21]}  Rxd5 {[%clk 0:01:16]} 22. Bxd5 {[%clk 0:00:20]}  Nxd5 {[%clk 0:01:17]} 23. Bg3 {[%clk 0:00:19]}  h5 {[%clk 0:01:16]} 24. h3 {[%clk 0:00:10]}  b6 {[%clk 0:01:16]} 25. Kh2 {[%clk 0:00:09]}  Rd8 {[%clk 0:01:15]} 26. Qd4 {[%clk 0:00:07]}  Rd7 {[%clk 0:01:07]} 27. Qe5 {[%clk 0:00:04]}  Qf5 {[%clk 0:00:56]} 28. Qxf5 {[%clk 0:00:04]}  Bxf5 {[%clk 0:00:56]} 29. Rfd1 {[%clk 0:00:05]}  Be6 {[%clk 0:00:56]} 30. Rd4 {[%clk 0:00:03]}  f5 {[%clk 0:00:56]} 31. Be5 {[%clk 0:00:04]}  h4 {[%clk 0:00:48]} 32. Rc6 {[%clk 0:00:04]}  Kf7 {[%clk 0:00:48]} 33. f3 {[%clk 0:00:03]}  e3 {[%clk 0:00:39]} 34. Rc1 {[%clk 0:00:02]}  g5 {[%clk 0:00:37]} 35. f4 {[%clk 0:00:02]}  Nxf4 {[%clk 0:00:32]} 36. Rxf4 {[%clk 0:00:01]}  gxf4 {[%clk 0:00:31]} 37. Bxf4 {[%clk 0:00:02]}  e2 {[%clk 0:00:30]} 38. Re1 {[%clk 0:00:01]}  Bc4 {[%clk 0:00:29]} 39. Bg5 {[%clk 0:00:02]}  Rd1 {[%clk 0:00:28]} 40. Bxh4 {[%clk 0:00:01]}  Rxe1 {[%clk 0:00:28]} 41. Bxe1 {[%clk 0:00:02]}  Bxa2 {[%clk 0:00:27]} 42. Kg3 {[%clk 0:00:03]}  a5 {[%clk 0:00:26]} 43. Kf3 {[%clk 0:00:03]}  Bc4 {[%clk 0:00:26]} 44. Bc3 {[%clk 0:00:02]}  a4 {[%clk 0:00:23]} 45. Kf2 {[%clk 0:00:02]}  a3 {[%clk 0:00:23]} 46. Ke1 {[%clk 0:00:02]}  a2 {[%clk 0:00:23]} 47. Kd2 {[%clk 0:00:02]}  b5 {[%clk 0:00:22]} 48. h4 {[%clk 0:00:01]}  f4 {[%clk 0:00:21]} 49. Ke1 {[%clk 0:00:01]}  Kg6 {[%clk 0:00:21]} 50. Kf2 {[%clk 0:00:01]}  b4 {[%clk 0:00:21]} 51. Bb2 {[%clk 0:00:01]}  Kh5 {[%clk 0:00:21]} 52. Bf6 {[%clk 0:00:01]}  b3 {[%clk 0:00:21]} 53. Ke1 {[%clk 0:00:01]}  Kg4 {[%clk 0:00:20]} 54. Kf2 {[%clk 0:00:02]}  Bb5 {[%clk 0:00:20]} 55. Ke1 {[%clk 0:00:01]}  Kg3 {[%clk 0:00:19]} 56. h5 {[%clk 0:00:02]}  Kxg2 {[%clk 0:00:20]} 57. h6 {[%clk 0:00:02]}  Bd3 {[%clk 0:00:20]} 58. Bd4 {[%clk 0:00:03]}  f3 {[%clk 0:00:20]} 59. Kd2 {[%clk 0:00:03]}  Bg6 {[%clk 0:00:18]} 60. Ke1 {[%clk 0:00:03]}  b2 {[%clk 0:00:18]} 61. Bxb2 {[%clk 0:00:03]}  f2+ {[%clk 0:00:18]} 0-1


[Site "https://www.chess.com"]

[Event "Early Titled Tuesday Blitz | February 8 2022"]
[White "Omariev, Maksim"]
[Black "Ovetchkin, Roman"]
[WhiteFideId "4193423"]
[BlackFideId "4119991"]
[WhiteElo "2533"]
[BlackElo "2409"]
[Result "0-1"]
[Round "10"]
[TimeControl "180+1"]
[Date "2022.02.08"]
[WhiteClock "0:00:12"]
[BlackClock "0:00:16"]

1. g4 {[%clk 0:03:00]}  e5 {[%clk 0:02:58]} 2. Bg2 {[%clk 0:03:01]}  h5 {[%clk 0:02:58]} 3. gxh5 {[%clk 0:02:59]}  Qh4 {[%clk 0:02:58]} 4. Nc3 {[%clk 0:02:45]}  Qxh5 {[%clk 0:02:50]} 5. Nf3 {[%clk 0:02:33]}  c6 {[%clk 0:02:33]} 6. d4 {[%clk 0:02:31]}  d6 {[%clk 0:02:33]} 7. Be3 {[%clk 0:01:32]}  Nf6 {[%clk 0:02:17]} 8. Qd2 {[%clk 0:00:59]}  Ng4 {[%clk 0:01:31]} 9. O-O-O {[%clk 0:00:55]}  Nxe3 {[%clk 0:01:24]} 10. Qxe3 {[%clk 0:00:56]}  f6 {[%clk 0:01:23]} 11. Rhg1 {[%clk 0:00:51]}  Qh6 {[%clk 0:01:22]} 12. Qxh6 {[%clk 0:00:47]}  Rxh6 {[%clk 0:01:21]} 13. d5 {[%clk 0:00:39]}  c5 {[%clk 0:01:13]} 14. Nb5 {[%clk 0:00:38]}  Na6 {[%clk 0:01:13]} 15. Nd2 {[%clk 0:00:33]}  Bd7 {[%clk 0:01:12]} 16. a4 {[%clk 0:00:31]}  Rxh2 {[%clk 0:00:37]} 17. Nc4 {[%clk 0:00:31]}  Bxb5 {[%clk 0:00:36]} 18. axb5 {[%clk 0:00:32]}  Nc7 {[%clk 0:00:36]} 19. b6 {[%clk 0:00:27]}  axb6 {[%clk 0:00:34]} 20. Nxb6 {[%clk 0:00:28]}  Ra6 {[%clk 0:00:34]} 21. Nc4 {[%clk 0:00:26]}  b5 {[%clk 0:00:34]} 22. Ne3 {[%clk 0:00:26]}  Rh4 {[%clk 0:00:32]} 23. Bf3 {[%clk 0:00:23]}  Kf7 {[%clk 0:00:27]} 24. Kd2 {[%clk 0:00:21]}  g6 {[%clk 0:00:25]} 25. Ra1 {[%clk 0:00:21]}  Rha4 {[%clk 0:00:21]} 26. Rxa4 {[%clk 0:00:20]}  Rxa4 {[%clk 0:00:21]} 27. Rh1 {[%clk 0:00:20]}  f5 {[%clk 0:00:20]} 28. b3 {[%clk 0:00:17]}  Ra2 {[%clk 0:00:18]} 29. Kc3 {[%clk 0:00:13]}  Bg7 {[%clk 0:00:17]} 30. Kd2 {[%clk 0:00:13]}  e4 {[%clk 0:00:18]} 31. Bg2 {[%clk 0:00:14]}  Na6 {[%clk 0:00:16]} 32. Rb1 {[%clk 0:00:12]}  Nb4 {[%clk 0:00:15]} 33. Kd1 {[%clk 0:00:12]}  Bd4 {[%clk 0:00:15]} 34. c4 {[%clk 0:00:11]}  Bxe3 {[%clk 0:00:14]} 35. fxe3 {[%clk 0:00:11]}  bxc4 {[%clk 0:00:14]} 36. bxc4 {[%clk 0:00:12]}  Kf6 {[%clk 0:00:14]} 37. Ke1 {[%clk 0:00:11]}  Ra3 {[%clk 0:00:14]} 38. Kf2 {[%clk 0:00:11]}  Rc3 {[%clk 0:00:14]} 39. Ra1 {[%clk 0:00:11]}  Rxc4 {[%clk 0:00:14]} 40. Ra6 {[%clk 0:00:11]}  Ke5 {[%clk 0:00:15]} 41. Ra7 {[%clk 0:00:12]}  Nxd5 {[%clk 0:00:15]} 42. Rg7 {[%clk 0:00:13]}  Kf6 {[%clk 0:00:15]} 43. Rd7 {[%clk 0:00:13]}  Ke6 {[%clk 0:00:15]} 44. Rg7 {[%clk 0:00:13]}  Ne7 {[%clk 0:00:16]} 45. Bf1 {[%clk 0:00:13]}  Kf6 {[%clk 0:00:16]} 46. Rh7 {[%clk 0:00:12]}  Rb4 {[%clk 0:00:16]} 0-1


[Site "https://www.chess.com"]

[Event "Early Titled Tuesday Blitz | February 8 2022"]
[White "Ozkan, Taha"]
[Black "Manelyuk, Daniil"]
[WhiteFideId "34577173"]
[BlackFideId "44173920"]
[WhiteElo "2024"]
[BlackElo "2222"]
[Result "0-1"]
[Round "10"]
[TimeControl "180+1"]
[Date "2022.02.08"]
[WhiteClock "0:01:56"]
[BlackClock "0:02:36"]

1. d4 {[%clk 0:02:57]}  Nf6 {[%clk 0:02:59]} 2. c4 {[%clk 0:02:57]}  c5 {[%clk 0:02:59]} 3. d5 {[%clk 0:02:57]}  b5 {[%clk 0:02:59]} 4. cxb5 {[%clk 0:02:58]}  a6 {[%clk 0:02:59]} 5. bxa6 {[%clk 0:02:59]}  g6 {[%clk 0:02:58]} 6. Nc3 {[%clk 0:02:59]}  Bg7 {[%clk 0:02:57]} 7. e4 {[%clk 0:03:00]}  O-O {[%clk 0:02:56]} 8. Nf3 {[%clk 0:03:00]}  Qa5 {[%clk 0:02:56]} 9. Bd2 {[%clk 0:02:55]}  Bxa6 {[%clk 0:02:54]} 10. Bxa6 {[%clk 0:02:55]}  Qxa6 {[%clk 0:02:53]} 11. Qe2 {[%clk 0:02:54]}  d6 {[%clk 0:02:53]} 12. Qxa6 {[%clk 0:02:51]}  Nxa6 {[%clk 0:02:54]} 13. O-O {[%clk 0:02:51]}  Rfb8 {[%clk 0:02:54]} 14. b3 {[%clk 0:02:48]}  Nd7 {[%clk 0:02:48]} 15. a4 {[%clk 0:02:46]}  Rxb3 {[%clk 0:02:46]} 16. Rac1 {[%clk 0:02:43]}  Nb4 {[%clk 0:02:42]} 17. Rb1 {[%clk 0:02:22]}  Rxc3 {[%clk 0:02:40]} 18. Bxc3 {[%clk 0:02:20]}  Bxc3 {[%clk 0:02:41]} 19. Rb3 {[%clk 0:02:19]}  Bg7 {[%clk 0:02:39]} 20. Ra3 {[%clk 0:02:19]}  Nb6 {[%clk 0:02:39]} 21. a5 {[%clk 0:02:18]}  Nc4 {[%clk 0:02:39]} 22. Ra4 {[%clk 0:02:18]}  Rxa5 {[%clk 0:02:39]} 23. Rxa5 {[%clk 0:02:17]}  Nxa5 {[%clk 0:02:40]} 24. Nd2 {[%clk 0:02:17]}  c4 {[%clk 0:02:40]} 25. Rb1 {[%clk 0:02:13]}  c3 {[%clk 0:02:38]} 26. Rxb4 {[%clk 0:02:04]}  cxd2 {[%clk 0:02:38]} 27. Rb1 {[%clk 0:02:04]}  Nc4 {[%clk 0:02:35]} 28. Kf1 {[%clk 0:02:04]}  Nb2 {[%clk 0:02:35]} 29. Ke2 {[%clk 0:02:03]}  d1=Q+ {[%clk 0:02:34]} 30. Rxd1 {[%clk 0:02:04]}  Nxd1 {[%clk 0:02:35]} 31. Kxd1 {[%clk 0:02:05]}  Bd4 {[%clk 0:02:35]} 32. Ke2 {[%clk 0:02:04]}  f5 {[%clk 0:02:36]} 33. exf5 {[%clk 0:02:04]}  gxf5 {[%clk 0:02:37]} 34. Kf3 {[%clk 0:02:02]}  Kf7 {[%clk 0:02:37]} 35. Kf4 {[%clk 0:02:02]}  Kf6 {[%clk 0:02:36]} 36. f3 {[%clk 0:01:57]}  Be5+ {[%clk 0:02:36]} 37. Ke3 {[%clk 0:01:57]}  Bxh2 {[%clk 0:02:36]} 38. f4 {[%clk 0:01:56]} 0-1


[Site "https://www.chess.com"]